Cogmind - Beta 16 @@@ ROGUE MODE // 2025.11.09 @ 21:42:39 Player: Runia Result: Destroyed by JN-NB0(R) with Subdweller Machine Gun Performance ------------- Evolutions (0) 0 Regions Visited (2) 400 Robots Destroyed (35) 175 Value Destroyed (720) 720 Prototype IDs (2) 40 Alien Tech Used (0) 0 Bonus (-36) -36 TOTAL SCORE: 1299 Bonus ------- Friendly Fire -36 Cogmind --------- Core Integrity 0/250 Matter 178/300 Energy 211/250 System Corruption 3% Temperature Cool (0) Movement Treading (480) Ox4 Location -10/Subcaves Parts ------- > --- POWER (1) -------- Ion Engine > --- PROPULSION (2) --- Light Treads Wheel > --- UTILITY (2) ------ Huge Storage Unit Medium Armor Plating > --- WEAPON (2) ------- Autogun Autogun > --- INVENTORY (25) --- Subdweller Power Source Subdweller Power Source Light Nuclear Core Wheel Wheel Improved Heat Sink Improved Targeting Computer Scrap Shield Shield Generator Hacking Suite Particle Gun Assault Rifle Autogun Battle Rifle Subdweller Machine Gun Hammer Peak State ------------ > --- POWER ------------ Ion Engine > --- PROPULSION ------- Light Treads Compact Wheel > --- UTILITY ---------- Huge Storage Unit Medium Armor Plating > --- WEAPON ----------- Autogun Autogun > --- INVENTORY -------- Ion Engine Light Treads Light Treads Wheel Wheel Improved Heat Sink Improved Targeting Computer Medium Armor Plating Medium Armor Plating Medium Armor Plating Shield Generator Hacking Suite Particle Gun Beam Cannon Assault Rifle Autogun Autogun Hammer [Rating: 13] Favorites ----------- Power Light Ion Engine Engine Light Ion Engine Propulsion Light Treads Treads Light Treads Leg Aluminum Leg Wheel Compact Wheel Utility Medium Armor Plating Storage Huge Storage Unit Protection Medium Armor Plating Weapon Autogun Energy Cannon Beam Cannon Ballistic Gun Autogun Build | -11 -10 -10 ------- Run | Yrd Mat Sub Slots Evolved . | . . . Power . | . . . Propulsion . | . . . Utility . | . . . Weapon . | . . . Parts Attached 18 | 2 8 8 Power 2 | . 1 1 Engine 2 | . 1 1 Core . | . . . Reactor . | . . . Propulsion 6 | 2 1 3 Treads 3 | 2 . 1 Leg . | . . . Wheel 3 | . 1 2 Hover . | . . . Flight . | . . . Utility 6 | . 3 3 Device . | . . . Storage 2 | . 2 . Processor . | . . . Hackware . | . . . Protection 4 | . 1 3 Artifact . | . . . Weapon 4 | . 3 1 Energy Gun . | . . . Energy Cannon 1 | . 1 . Ballistic Gun 3 | . 2 1 Ballistic Cannon . | . . . Launcher . | . . . Special Weapon . | . . . Impact Weapon . | . . . Slashing Weapon . | . . . Piercing Weapon . | . . . Special Melee Weapon . | . . . Unidentified Prototypes . | . . . Parts Lost 11 | . 1 10 Power 2 | . 1 1 Propulsion 4 | . . 4 Utility 3 | . . 3 Weapon 2 | . . 2 Highest Loss Streak 3 | . 1 3 To Critical Strikes 1 | . . 1 Average Backups 13 | 6 11 16 Power . | 1 . 1 Propulsion 2 | 4 2 2 Utility 5 | . 4 5 Weapon 4 | 1 4 5 Tool/Special . | . . . Unused Backups 21 | . 5 16 Power 3 | . . 3 Propulsion 2 | . . 2 Utility 7 | . 2 5 Weapon 9 | . 3 6 Tool/Special . | . . . Average Slot Usage (%) 98 | . 98 99 Engine 13 | . 13 14 Treads 14 | . 14 15 Wheel 12 | . 13 11 Storage 14 | . 14 14 Protection 13 | . 13 14 Energy Cannon 1 | . . 6 Ballistic Gun 26 | . 28 21 Peak Build Rating 13 | 6 13 13 Average Rating 11 | 5 11 12 On Entrance 8 | 6 6 12 Avg Prop Armor Cover (%) 8 | . 8 8 Naked Turns . | . . . Heaviest Build 98 | 12 98 98 Greatest Support 40 | 40 40 40 Greatest Overweight (x) 9 | . 6 9 Average Overweight (x) 5 | . 4 8 Largest Inventory Capacity 25 | 8 25 25 Average Capacity 22 | 8 22 25 Most Carried 20 | 6 19 20 Average Carried 13 | 5 11 16 Final Capacity 25 | 8 25 25 Final Carried 19 | 4 19 17 Class Distribution -------------------- 100% | Mutant Dominant Class ---------------- Mutant | -10/Materials Mutant | -10/Subcaves Resources | -11 -10 -10 ----------- Run | Yrd Mat Sub Matter Collected 1304 | 183 781 340 Remotely . | . . . Salvage Created 1184 | . 898 286 Parts 58 | . 44 14 Haulers Intercepted 1 | . 1 . Recyclers Shooed 4 | . 4 . Parts Field Recycled . | . . . Retrieved Matter . | . . . Parts Self-Destructed 2 | . . 2 Prevented . | . . . Parts Restored . | . . . Kills | -11 -10 -10 ------- Run | Yrd Mat Sub Combat Hostiles Destroyed 23 | . 15 8 Guns 23 | . 15 8 Classes Destroyed 11 | . 9 2 Worker 2 | . 2 . Builder 1 | . 1 . Tunneler 1 | . 1 . Hauler 1 | . 1 . Recycler 4 | . 4 . Operator 1 | . 1 . Watcher 2 | . 2 . Swarmer 9 | . 6 3 Grunt 9 | . 9 . Subdweller 5 | . . 5 Scientist 1 | . . 1 Best Kill Streak 4 | . 4 3 Combat Bots Only 4 | . 4 3 Max Kills in Single Turn 1 | . 1 1 Gunslinging . | . . . Exploded . | . . . Melee . | . . . Uniques/NPCs Destroyed . | . . . Combat | -11 -10 -10 -------- Run | Yrd Mat Sub Hostile Shots Fired 167 | . 55 112 Missed 48 | . 16 32 Hits 119 | . 39 80 Projectile 119 | . 39 80 AOE 2 | . . 2 Critical Strikes 3 | . . 3 Damage Taken 1845 | . 411 1434 Core 256 | . 90 166 Absorbed by Shields . | . . . Regen/Repaired (Parts) 35 | . 35 . Core Remaining (%) 100 | 100 . . Volleys Fired 129 | . 83 46 Largest 2 | . 2 2 Hottest 83 | . 46 83 Shots Fired 260 | . 167 93 Gun 247 | . 167 80 Cannon 13 | . . 13 Launcher . | . . . Special . | . . . Kinetic 247 | . 167 80 Thermal 13 | . . 13 Explosive . | . . . Electromagnetic . | . . . Robot Hit Streak 16 | . 14 16 Robot Miss Streak 3 | . 3 3 Penetration Max . | . . . Secondary Targets 2 | . 1 1 Max Gunslinging Chain 1 | . 1 1 Shots Hit Robots 180 | . 111 69 Core Hits 53 | . 38 15 Critical Kills . | . . . Critical Parts Destroyed . | . . . Critical Strikes . | . . . Melee Attacks . | . . . Impact . | . . . Slashing . | . . . Piercing . | . . . Sneak Attacks . | . . . Combat Hostiles . | . . . Follow-up Attacks . | . . . Damage Inflicted 2715 | . 1678 1037 Guns 2539 | . 1678 861 Cannons 176 | . . 176 Explosions . | . . . Melee . | . . . Ramming . | . . . Kinetic 2539 | . 1678 861 Thermal 176 | . . 176 Explosive . | . . . Electromagnetic . | . . . Impact . | . . . Slashing . | . . . Piercing . | . . . Highest Corruption 3 | . 3 3 Average Corruption 2 | . 2 3 Corruption Purged . | . . . Corruption Blocked . | . . . Effects 25 | . 10 15 Message Errors 5 | . . 5 Matter Fused 7 | . 2 5 Heat Flow Errors 3 | . 2 1 Energy Discharges 5 | . 4 1 Parts Rejected 1 | . 1 . Data Loss (minor) 1 | . . 1 Misfires 2 | . 1 1 Alerts 1 | . . 1 Overload Shots . | . . . Overflow Damage . | . . . Projectiles . | . . . Explosions . | . . . Melee . | . . . Knockbacks . | . . . Impact . | . . . Kinetic . | . . . Secondary . | . . . Self-Inflicted Damage . | . . . Shots . | . . . Rammed . | . . . Targets Rammed . | . . . Kicked . | . . . Crushed . | . . . Highest Temperature 227 | . 175 227 Average Temperature 29 | . 27 40 Received Heat Transfer 315 | . 141 174 Siege Activations . | . . . Martial Activations . | . . . Shielding Activations . | . . . Robots Disrupted . | . . . Combat Hostiles . | . . . Robots Corrupted . | . . . Combat Hostiles . | . . . Parts Fried . | . . . Impact Corruptions . | . . . Robots Melted . | . . . Combat Hostiles . | . . . Parts Melted 1 | . . 1 Heat Transferred 370 | . . 370 Parts Sabotaged . | . . . Parts Stolen . | . . . Parts Stripped . | . . . Power Chain Reactions . | . . . Alert | -11 -10 -10 ------- Run | Yrd Mat Sub Maximum Alert Level . | . . . Low Security (%) 100 | 100 100 . Level 1 . | . . . Level 2 . | . . . Level 3 . | . . . Level 4 . | . . . Level 5 . | . . . High Security . | . . . Max Security . | . . . Peak Influence 171 | . 171 . Initial . | . . . Average 49 | . 49 . Influence Increases 612 | . 522 90 Destroy 0b10 Robot/C 360 | . 300 60 Destroy 0b10 Robot/NC 60 | . 60 . Destroy Leader 76 | . 76 . Successful Hack 25 | . 25 . Select Force Hacks 30 | . 30 . Disable Machine 15 | . 15 . Destroy Structure 1 | . 1 . Lose Combat Pursuer 45 | . 15 30 Influence Decreases 612 | . 480 132 Entered New Map 21 | . . 21 Time Decay 563 | . 470 93 Lost Part 28 | . 10 18 Squads Dispatched 3 | . 3 . Investigation 1 | . 1 . Extermination . | . . . Reinforcement 2 | . 2 . Assault . | . . . Garrison . | . . . Intercept . | . . . Searches Triggered . | . . . Construction Impeded . | . . . Haulers Reinforced . | . . . Active Scanning Responses . | . . . Cargo Convoy Interrupts . | . . . Stealth | -11 -10 -10 --------- Run | Yrd Mat Sub Distress Signals . | . . . Communications Jammed . | . . . Distress Signals . | . . . Times Spotted 37 | . 24 13 Peak Tracking Total 6 | . 5 6 Tactical Retreats 2 | . 1 1 Traps | -11 -10 -10 ------- Run | Yrd Mat Sub Traps Triggered 3 | . 2 1 Indirectly . | . . . Trap Hack Attempts . | . . . Triggered . | . . . Disarmed . | . . . Reprogrammed . | . . . Reused . | . . . Traps Extracted . | . . . Installed . | . . . Triggered . | . . . Machines | -11 -10 -10 ---------- Run | Yrd Mat Sub Machines Disabled 1 | . 1 . Max in Single Turn 1 | . 1 . Machines Repaired . | . . . Machines Dismantled . | . . . Machines Sabotaged . | . . . Overloaded Fab Kills . | . . . Hacking | -11 -10 -10 --------- Run | Yrd Mat Sub Machines Accessed 7 | . 7 . Terminals 5 | . 5 . Fabricators . | . . . Repair Stations 1 | . 1 . Recycling Units 1 | . 1 . Scanalyzers . | . . . Garrison Access . | . . . Total Hacks 15 | . 15 . Successful 10 | . 10 . Failed 5 | . 5 . Catastrophic . | . . . Database Lockouts . | . . . Manual 8 | . 8 . Terminals 10 | . 10 . Fabricators . | . . . Repair Stations 3 | . 3 . Recycling Units 2 | . 2 . Scanalyzers . | . . . Garrison Access . | . . . Terminal Hacks 2 | . 2 . Robot Analysis 1 | . 1 . Prototype ID Bank 1 | . 1 . Fabricator Hacks . | . . . Repair Station Hacks 2 | . 2 . Scan Component 1 | . 1 . Repair 1 | . 1 . Recycling Unit Hacks . | . . . Scanalyzer . | . . . Garrison Access Hacks . | . . . Unauthorized Hacks 6 | . 6 . Terminals 5 | . 5 . Skim 5 | . 5 . Fabricators . | . . . Repair Stations . | . . . Recycling Units 1 | . 1 . Tunnel 1 | . 1 . Scanalyzers . | . . . Garrison Access . | . . . Data Cores Recovered . | . . . Used . | . . . Hacking Detections 6 | . 6 . Full Trace Events . | . . . Feedback Events . | . . . Feedback Blocked . | . . . Robot Schematics Acquired . | . . . Robots Built . | . . . Authchips . | . . . Time . | . . . Total Robot Build Rating . | . . . Part Schematics Acquired . | . . . Parts Built . | . . . Authchips . | . . . Time . | . . . Total Part Build Rating . | . . . Part Studies Acquired . | . . . Parts Repaired 1 | . 1 . Time 32 | . 32 . Parts Recycled . | . . . Recycled Matter . | . . . Retrieved Matter . | . . . Retrieved Components . | . . . Parts Scanalyzed . | . . . Part Schematics Acquired . | . . . Parts Damaged . | . . . Bothacking | -11 -10 -10 ------------ Run | Yrd Mat Sub Used RIF Installer . | . . . Robots Hacked . | . . . Non-combat . | . . . Combat . | . . . Robot Hacks Applied . | . . . Relay Couplers Released . | . . . Fabnet Peak Effective % . | . . . Robots Rewired . | . . . Allies Hacked . | . . . Hacks Repelled . | . . . Allies | -11 -10 -10 -------- Run | Yrd Mat Sub Total Allies . | . . . Largest Group . | . . . Highest-Rated Group . | . . . Highest-Rated Ally . | . . . Total Orders . | . . . Ally Attacks . | . . . Total Damage . | . . . Kills . | . . . Allies Corrupted . | . . . Allies Melted . | . . . Intel | -11 -10 -10 ------- Run | Yrd Mat Sub Active Infowar (turns) . | . . . Robot Analysis Total 1 | . 1 . Derelict Logs Recovered . | . . . Drone Launches . | . . . Drone Recoveries . | . . . Exploration | -11 -10 -10 ------------- Run | Yrd Mat Sub Turns Passed 2370 | 3 1634 733 Spaces Moved 1042 | 1 774 267 Core . | . . . Treads 51 | 1 35 15 Legs . | . . . Wheels 991 | . 739 252 Hover . | . . . Flight . | . . . Fastest Speed 115 | 160 115 190 Average Speed 181 | 160 169 216 Slowest Speed 320 | 160 190 320 Overloaded Moves . | . . . Propulsion Burnouts . | . . . Robots Hopped . | . . . Potential Cave-ins . | . . . Cave-ins Triggered . | . . . Exploration Rate (%) 42 | 2 96 28 Regions Visited 2 Branch Regions 1 Pre-discovered Areas 1 | . 1 . Known Exits Taken 1 | . 1 . Unknown Exits Taken 1 | 1 . . Scrap Searched . | . . . Spaces Dug . | . . . Terrain Destroyed . | . . . Melee . | . . . Projectile . | . . . AOE . | . . . Terrain Rammed . | . . . Walls Destroyed . | . . . Machines Disabled . | . . . Actions | -11 -10 -10 --------- Run | Yrd Mat Sub Total 1312 | 4 962 346 Wait 81 | . 67 14 Move 1040 | . 773 267 Hop . | . . . Pick Up 27 | . 20 7 Fast Attach 4 | . 4 . Attach 12 | 2 . 10 Detach . | . . . Swap 8 | . 6 2 Drop 11 | 2 9 . Fire 129 | . 83 46 Melee . | . . . Ram . | . . . Kick . | . . . Crush . | . . . Escape Stasis . | . . . Rewire . | . . . Trap . | . . . Miscellaneous . | . . . Route ------- -11/Scrapyard -10/Materials (discovered 5 exits: *Mat x3 / [*Min] / *Sub) -10/Subcaves (discovered 2 exits: *Mat x2) History --------- Turn | Location | Event 4 | -11/Scrapyard | Discovered new exit (range 0) 4 | -11/Scrapyard | Entered Materials 195 | -10/Materials | Discovered new exit (range 15) 301 | -10/Materials | Build established: Mutant 335 | -10/Materials | Discovered new exit (range 14) 828 | -10/Materials | Repaired Med. Armor Plating 948 | -10/Materials | Discovered new exit (range 11) 1011 | -10/Materials | Identified exit to Materials 1091 | -10/Materials | Identified exit to Subcaves 1225 | -10/Materials | Learned 2 Mines zone layouts 1280 | -10/Materials | Learned Storage trap positions 1422 | -10/Materials | Learned 4 Subcaves zone layouts 1638 | -10/Materials | Entered Subcaves 1639 | -10/Subcaves | Approached by a straggling Scientist 1639 | -10/Subcaves | Identified exit to Materials 1953 | -10/Subcaves | Shifting Twisted Machinery released Mak. Flight Unit 1975 | -10/Subcaves | Core integrity fell below 50% 2017 | -10/Subcaves | Lost 3 parts (1p1u1w) 2356 | -10/Subcaves | Ambushed by Subdweller buried in earth 2358 | -10/Subcaves | Core integrity fell below 20% 2371 | -10/Subcaves | Destroyed by JN-NB0(R) with Subdweller Machine Gun Last Messages --------------- 02223_ Subatomizers dissect the Wheel. 02238_ System corrupted: Matter fused (-10). 02238_ Subatomizers dissect the Wheel. 02246_ Acquired 67 matter. 02251_ Subatomizers dissect the Wheel. 02253_ Acquired Wheel. 02291_ 5C-WR7(R) destroyed. 02293_ System corrupted: IFF burst signal emitted. 02306_ Acquired Sub. Machine Gun. 02309_ Acquired Battle Rifle. 02310_ Acquired 32 matter. 02317_ Acquired Sub. Power Source. 02340_ X8P0ABR85CEOUZCTHDCSBMEVRER9=K VX0JRXM 02355_ Med. Armor Plating destroyed. 02356_ Lgt. Treads destroyed. [Achievement: Do Not Disturb] 02357_ JN-NB0(R): "ARGHSUB!" 02357_ Destroyed Sub. Optics. 02361_ Autogun destroyed. 02369_ System corrupted: Energy discharge (-57). Map ----- +----------------------------------------------------+ | ???????????????????????????????????????????????# | | ???????????????????????????????????????????????? | | ????????????????????????????????????????????????# | | ????????????????????????????????????????????????# | | ????????????????????????????????????????????????# | | ???????????????????????????????????????????????## | | ?????????????????????????????###????????????#### | | ????????????????????????????## ##???######## | | ????????????????????????????# %#???# ## ## | | ???????????????????????????## % #???# ## | | ?????????????????????????### ##??# ##? | | ?????????????????????????# #??# # #?? | | ????????????????????????## ##?# ### #?? | | ????????????????????##### % #### ## #? | | ???????????????????## % % ### ### # | | ???????????????? ## #?## | | ???????????????? ####% ## #??## | | ???????????????? < #?## ## ##??# | | ??????????????????????? ?# #???### | | ???????????????????????? #?# ####?????? | | ?????????????????????????# ### [ #?????????# | | ?????????????????????##### # #####?????? | | ?????????????????????# ; ##### #?????? | | #?## #?## #?## # ## #?????# | | ### ### ##?#; #?##### | | # ###### @ ; ### | | #??# R ; # # # ## | | ### ##??### ######## ### | | ####### ##?????# RR ; #?????# ### | | ###??## #??????# ;########### | | #????# ##?????## #??## ## | | ##???## ###??## #?## ##### | | ##### #### #### ##???# ## | | # # # ##### ####????# ##? | | ##?# ## ##???????####?? | | # # #?# #### ##????????????# | | # # #### ######?## ###??# #????????????# | | ######??## #######???????###????# ###????????????# | | ?????????###????????????????????###??????????????? | | ?????????????????????????????????????????????????? | | ?????????????????????????????????????????????????? | | ?????????????????????????????????????????????????? | | ?????????????????????????????????????????????????? | | ?????????????????????????????????????????????????? | | ?????????????????????????????????????????????????? | | ?????????????????????????????????????????????????? | | ?????????????????????????????????????????????????? | | ?????????????????????????????????????????????????? | | ?????????????????????????????????????????????????? | | ?????????????????????????????????????????????????? | +----------------------------------------------------+ Best States ------------- Heat Dissipation 25 Energy Generation 10 Energy Capacity 250 Matter Stores 300 Matter Capacity 300 Sight Range 16 Terrain Scan Density 10 Armor Coverage 225 Evasion (%) 40 Recoil Reduction 2 Item Schematics ----------------- None Robot Schematics ------------------ None Fabricated ------------ Nothing Repaired ---------- Med. Armor Plating | 70% | -10/Materials Studied --------- None Alien Tech Used ----------------- None Achievements -------------- Do Not Disturb Challenges ------------ None Game ------ Seed SchematicGravitonTorch Manual? 0 Play Time 00:13:53 Cumulative 875.3 hours Start 2025.11.09 @ 21:31:54 End 2025.11.09 @ 21:42:39 Sessions 1 Manual Loads 0 Difficulty Rogue Special Mode None Game No. 746 Rogue 746 Adventurer 0 Explorer 0 Win Type - Total 46 Types 15/8/11/1/1/1/7/1/1/0 Lore% 79 Gallery% 84 Achievement% 57 Wizard Run 0 Options --------- Layout 0 ASCII 0 Keyboard 0 Movement Mouse Keybinds 1 Fullscreen 2 Font 24/Smallcaps Map View 76x50 Zoom Use 0% Tactical HUD 1 Map Filters NONE Filters NONE Steam 1 RUN: e8b85344-c9f7-41eb-8e7c-3fbca0a48f21